bitfinex/quotes_BTCUSD_20220226
["timestamp","ask_amount","ask_price","bid_price","bid_amount"]
[1645869754808,1.14654778,38882.0,38881.0,0.00444913]
[1645869755009,1.21089678,38882.0,38881.0,0.00444913]
[1645869755209,0.91089678,38882.0,38881.0,0.00444913]
[1645869755710,0.760349,38882.0,38881.0,0.00444913]
[1645869755910,0.761349,38882.0,38881.0,0.00444913]
[1645869756965,1.061349,38882.0,38881.0,0.00444913]
[1645869757166,1.21089678,38882.0,38881.0,0.00444913]
[1645869757771,1.23652008,38882.0,38881.0,0.00444913]
[1645869757967,1.23652008,38882.0,38880.0,0.03095461]
[1645869757968,3.4100947,38882.0,38880.0,0.03095461]
[1645869758170,0.26649678,38882.0,38880.0,0.03095461]
[1645869758368,0.15054778,38881.0,38880.0,0.03067491]
[1645869758567,0.20214778,38881.0,38880.0,0.03067491]
[1645869758767,0.0516,38881.0,38880.0,0.03067491]
[1645869759268,0.0466,38881.0,38880.0,0.03067491]
[1645869762909,0.0466,38881.0,38880.0,0.02849235]
[1645869763108,0.0466,38881.0,38880.0,0.02840834]
[1645869763757,0.0476,38881.0,38880.0,0.02840834]
[1645869763960,0.04541744,38881.0,38880.0,0.02840834]
[1645869764161,0.04533343,38881.0,38880.0,0.02840834]
[1645869765158,0.04433343,38881.0,38880.0,0.02840834]
[1645869765560,0.04433343,38881.0,38880.0,0.02633195]
[1645869765860,0.04533343,38881.0,38880.0,0.02633195]
[1645869766668,0.04533343,38881.0,38880.0,0.25504597]
[1645869766669,0.001,38881.0,38880.0,0.25504597]
[1645869766865,0.001,38881.0,38880.0,0.93405597]
[1645869767266,0.00029747,38887.0,38881.0,0.002]
[1645869767510,0.00029747,38887.0,38882.0,0.37901]
[1645869767708,0.00029747,38887.0,38886.0,0.23732585]
[1645869767912,0.17985566,38894.0,38886.0,0.23732585]
[1645869768109,0.20116,38895.0,38886.0,0.23732585]
[1645869768311,0.00019574,38887.0,38886.0,0.23732585]
[1645869769109,0.20116,38895.0,38886.0,0.23732585]
[1645869769313,0.20116,38895.0,38887.0,0.3]
[1645869769611,0.00019574,38888.0,38887.0,0.3]
[1645869769810,0.00019574,38888.0,38886.0,0.23732585]
[1645869770411,0.20116,38895.0,38887.0,0.3]
[1645869770613,0.00029771,38889.0,38887.0,0.3]
[1645869770812,0.00029771,38889.0,38886.0,0.23732585]
[1645869771011,0.00029771,38889.0,38887.0,0.3]
[1645869771256,0.00029771,38889.0,38886.0,0.23732585]
[1645869771459,0.20235065,38895.0,38887.0,0.3]
[1645869771460,0.20116,38895.0,38887.0,0.3]
[1645869771863,0.00029771,38889.0,38887.0,0.3]
[1645869772061,0.00029771,38889.0,38887.0,0.32574]
[1645869772758,0.001,38895.0,38887.0,0.32574]
[1645869772962,0.00019596,38890.0,38887.0,0.32574]
[1645869773359,0.00019596,38890.0,38887.0,1.11084]
[1645869773562,0.00019596,38890.0,38889.0,0.12574]
[1645869773762,0.00019596,38890.0,38889.0,1.21084]
[1645869773964,0.001,38895.0,38889.0,1.21084]
[1645869774164,0.001,38895.0,38891.0,0.12574]
[1645869774366,0.001,38895.0,38893.0,0.60475609]
[1645869774562,0.001,38895.0,38894.0,0.3]
[1645869775203,0.001,38895.0,38894.0,0.42574]
[1645869775411,0.001,38895.0,38894.0,1.21084]
[1645869775606,0.001,38897.0,38895.0,1.60475]
[1645869775607,9.791e-05,38897.0,38895.0,1.60475]
[1645869775806,9.791e-05,38897.0,38896.0,0.42574]
[1645869776406,9.791e-05,38897.0,38896.0,0.4]
[1645869776808,9.791e-05,38897.0,38896.0,0.46428892]
[1645869777010,9.791e-05,38897.0,38896.0,0.36428892]
[1645869777207,9.791e-05,38897.0,38896.0,0.46428892]
[1645869777807,9.791e-05,38897.0,38896.0,0.46628892]
[1645869779067,9.791e-05,38897.0,38896.0,0.46428892]
[1645869779463,9.791e-05,38897.0,38896.0,0.49002892]
[1645869779666,9.791e-05,38897.0,38896.0,0.46428892]
[1645869779864,9.791e-05,38897.0,38896.0,0.46728892]
[1645869780067,9.791e-05,38897.0,38896.0,0.36728892]
[1645869780265,9.791e-05,38897.0,38896.0,0.46728892]
[1645869780464,9.791e-05,38897.0,38896.0,0.36728892]
[1645869780666,9.791e-05,38897.0,38896.0,0.303]
[1645869781163,0.00083372,38898.0,38897.0,1.2]
[1645869781370,7.91e-06,38898.0,38897.0,1.65]
[1645869781564,0.00119146,38904.0,38897.0,1.72574]
[1645869781765,0.00119146,38904.0,38899.0,0.1]
[1645869781963,0.00119146,38904.0,38899.0,0.4]
[1645869782366,0.0011,38909.0,38899.0,0.4]
[1645869783822,0.08726237,38910.0,38900.0,1.2]
[1645869784020,0.07873125,38910.0,38904.0,0.1]
[1645869784421,0.0011,38910.0,38904.0,0.1]
[1645869785022,0.00029788,38909.0,38904.0,0.1]
[1645869785222,0.00021387,38909.0,38904.0,0.1]
[1645869786026,0.13999421,38913.0,38904.0,0.1]
[1645869786253,0.26,38909.0,38905.0,0.3]
[1645869786454,0.26,38909.0,38904.0,0.1]
[1645869786654,0.26,38909.0,38901.0,0.3]
[1645869786855,0.26,38909.0,38898.0,0.5338]
[1645869787655,0.25792361,38909.0,38898.0,0.5338]
[1645869787855,0.064302,38908.0,38898.0,0.5348]
[1645869788659,0.46709086,38908.0,38898.0,0.5348]
[1645869788860,0.0466,38907.0,38898.0,0.421]
[1645869789058,0.849419,38904.0,38898.0,0.421]
[1645869789257,0.9867,38903.0,38898.0,0.42]
[1645869789457,1.01753513,38903.0,38898.0,0.42]
[1645869789656,0.20046,38900.0,38898.0,0.42]
[1645869789857,0.0516,38899.0,38898.0,0.42]
[1645869791313,0.0516,38899.0,38890.0,0.20557518]
[1645869791514,0.0516,38899.0,38890.0,0.00029798]
[1645869792012,0.0516,38899.0,38887.0,0.3]
[1645869792211,0.0516,38899.0,38890.0,0.00029796]
[1645869792212,0.20004,38892.0,38890.0,0.00029796]
[1645869793212,0.20004,38892.0,38887.0,0.23989307]
[1645869793413,0.20004,38892.0,38889.0,0.00010271]
[1645869794466,0.20004,38892.0,38887.0,0.23989307]
[1645869794668,0.20004,38892.0,38889.0,0.00029764]
[1645869794868,0.0516,38894.0,38889.0,0.00029764]
[1645869795372,0.0516,38894.0,38893.0,0.19421409]
[1645869795971,0.0516,38894.0,38893.0,0.49421409]
[1645869796181,0.26,38894.0,38893.0,0.87322409]
[1645869796370,0.26,38894.0,38893.0,0.57322409]
[1645869796569,0.232,38894.0,38893.0,0.51995409]
[1645869796771,0.232,38894.0,38893.0,0.21995409]
[1645869797171,0.20119485,38908.0,38895.0,0.34774941]
[1645869797370,0.20119485,38908.0,38896.0,0.3]
[1645869798011,0.201,38908.0,38896.0,0.3]
[1645869798206,0.2012978,38908.0,38904.0,0.21971578]
[1645869799007,0.2012978,38908.0,38896.0,0.4838]
[1645869799207,0.201,38908.0,38896.0,0.4838]
[1645869799408,0.20129782,38908.0,38896.0,0.4838]
[1645869800008,0.20129782,38908.0,38900.0,0.19199346]
[1645869800511,0.201,38908.0,38900.0,0.19199346]
[1645869800709,0.20129781,38908.0,38900.0,0.19199346]
[1645869801565,0.201,38908.0,38900.0,0.19199346]
[1645869801962,0.20129781,38908.0,38900.0,0.19399346]
[1645869802765,0.201,38908.0,38900.0,0.002]
[1645869803168,0.20129781,38908.0,38896.0,0.4838]
[1645869803664,0.20129781,38908.0,38898.0,0.22619205]
[1645869804064,0.201,38908.0,38898.0,0.22619205]
[1645869804266,0.2012978,38908.0,38898.0,0.22619205]
[1645869805307,0.201,38908.0,38898.0,0.22619205]
[1645869805505,0.2012978,38908.0,38898.0,0.22619205]
[1645869805908,0.19911524,38908.0,38898.0,0.22819205]
[1645869806306,0.19903123,38908.0,38898.0,0.22819205]
[1645869806506,0.19873343,38908.0,38898.0,0.22819205]
[1645869806706,0.19903123,38908.0,38898.0,0.22819205]
[1645869807106,0.19903123,38908.0,38898.0,0.22619205]
[1645869807305,0.45903123,38908.0,38898.0,0.22619205]
[1645869807705,0.45873343,38908.0,38898.0,0.22619205]
[1645869807906,0.45903123,38908.0,38898.0,0.22619205]
[1645869808761,0.45665704,38908.0,38898.0,0.22619205]
[1645869809160,0.45695484,38908.0,38898.0,0.22619205]
[1645869809562,0.45695484,38908.0,38896.0,0.1838]
[1645869809761,0.45695484,38908.0,38897.0,0.3]
[1645869809961,0.45665704,38908.0,38898.0,0.002]
[1645869810360,0.45695484,38908.0,38898.0,0.002]
[1645869810566,0.1,38906.0,38898.0,0.002]
[1645869810762,0.064319,38903.0,38898.0,0.002]
[1645869810967,0.0516,38902.0,38898.0,0.002]
[1645869811162,0.0516,38902.0,38895.0,0.34774941]
[1645869811361,0.25242,38902.0,38895.0,0.34774941]
[1645869811962,0.0516,38902.0,38895.0,0.34774941]
[1645869812163,0.20088,38897.0,38895.0,0.34774941]
[1645869812363,0.0516,38896.0,38895.0,0.34774941]
[1645869814008,0.0526,38896.0,38895.0,0.34774941]
[1645869815810,0.0516,38896.0,38895.0,0.34774941]
[1645869816009,0.0526,38896.0,38895.0,0.34774941]
[1645869817255,0.0516,38896.0,38895.0,0.34774941]
[1645869818255,0.0516,38896.0,38895.0,0.57736766]
[1645869818458,0.3116,38896.0,38895.0,0.57736766]
[1645869821104,0.3116,38896.0,38895.0,0.34774941]
[1645869824262,0.26,38896.0,38895.0,0.34774941]
[1645869825963,0.262,38896.0,38895.0,0.34774941]
[1645869826162,0.3136,38896.0,38895.0,0.34774941]
[1645869826961,0.31141744,38896.0,38895.0,0.34774941]
[1645869827162,0.30933343,38896.0,38895.0,0.34774941]
[1645869829717,0.30725704,38896.0,38895.0,0.34774941]
[1645869831124,0.25565704,38896.0,38895.0,0.64774941]
[1645869831377,0.25565704,38896.0,38895.0,0.72675941]
[1645869831971,0.25565704,38896.0,38895.0,0.72775941]
[1645869832271,0.25565704,38896.0,38895.0,0.90935453]
[1645869832874,0.25565704,38896.0,38895.0,0.53034453]
[1645869833273,0.25565704,38896.0,38895.0,0.83034453]
[1645869833475,0.25565704,38896.0,38895.0,0.82934453]
[1645869834075,0.25565704,38896.0,38895.0,0.83134453]
[1645869835310,0.25565704,38896.0,38895.0,0.82934453]
[1645869835917,0.00027545,38908.0,38896.0,0.32407457]
[1645869836112,0.00027545,38908.0,38897.0,0.3]
[1645869836312,0.00027545,38908.0,38897.0,0.29977014]
[1645869836512,0.2004,38909.0,38902.0,0.1934396]
[1645869836712,0.00027544,38908.0,38902.0,0.1934396]
[1645869837717,0.2004,38909.0,38902.0,0.1934396]
[1645869837916,0.00027545,38908.0,38902.0,0.1934396]
[1645869838764,0.2004,38909.0,38902.0,0.1934396]
[1645869839163,0.00027545,38908.0,38902.0,0.1934396]
[1645869839964,0.2004,38909.0,38902.0,0.1934396]
[1645869840364,0.00027545,38908.0,38902.0,0.1934396]
[1645869840562,0.00027545,38908.0,38896.0,1.64047457]
[1645869840762,0.00027545,38908.0,38903.0,0.61805341]
[1645869841264,0.325,38912.0,38903.0,0.61805341]
[1645869841465,0.00017255,38908.0,38903.0,0.61805341]
[1645869841665,0.2004,38905.0,38903.0,0.61805341]
[1645869843209,0.4604,38905.0,38903.0,0.61805341]
[1645869846870,0.4604,38905.0,38903.0,0.61760031]
[1645869848171,0.45821744,38905.0,38903.0,0.61760031]
[1645869848369,0.45813343,38905.0,38903.0,0.61760031]
[1645869849872,0.45813343,38905.0,38904.0,6.852e-05]
[1645869850714,0.45605704,38905.0,38904.0,6.852e-05]
[1645869854565,0.26,38905.0,38903.0,0.61760031]
[1645869856067,0.0516,38904.0,38903.0,0.61760031]
[1645869856467,0.1516,38904.0,38903.0,0.61760031]
[1645869856867,0.115911,38904.0,38903.0,0.61760031]
[1645869857065,0.0516,38904.0,38903.0,0.61760031]
[1645869857720,0.26,38905.0,38903.0,0.8178314]
[1645869858319,0.26,38905.0,38904.0,0.3]
[1645869858720,0.26,38905.0,38903.0,0.8178314]
[1645869859217,0.002,38909.0,38905.0,0.81084]
[1645869859418,0.20094,38910.0,38907.0,0.02574]
[1645869859617,0.00017252,38908.0,38907.0,0.02574]
[1645869859818,0.00017252,38908.0,38907.0,0.40475]
[1645869860018,0.00017252,38908.0,38906.0,0.3]
[1645869860221,0.00017252,38908.0,38904.0,0.3]
[1645869860421,0.001,38918.0,38905.0,0.37901]
[1645869860619,0.001,38918.0,38906.0,0.3]
[1645869860818,0.00017253,38909.0,38906.0,0.3]
[1645869861018,0.00017253,38909.0,38907.0,0.37901]
[1645869861267,0.00017253,38909.0,38908.0,0.02574]
[1645869861463,0.00017253,38909.0,38908.0,0.40475]
[1645869861664,0.0021,38915.0,38908.0,0.37901]
[1645869861861,0.0021,38915.0,38904.0,0.06427423]
[1645869862061,0.00018356,38910.0,38908.0,0.003]
[1645869862263,0.00018356,38910.0,38909.0,0.37901]
[1645869862461,0.00018356,38910.0,38909.0,0.67901]
[1645869862862,0.0021,38915.0,38909.0,0.67901]
[1645869863263,0.0001835,38911.0,38909.0,0.67901]
[1645869863462,0.0001835,38911.0,38910.0,0.37901]
[1645869864061,0.1022303,38913.0,38911.0,0.37901]
[1645869864362,0.0001835,38912.0,38911.0,0.37901]
[1645869864763,0.0001835,38912.0,38909.0,0.40475]
[1645869865010,0.0001835,38912.0,38911.0,0.37901]
[1645869865210,0.1022303,38913.0,38911.0,0.37901]
[1645869865614,0.10241306,38913.0,38911.0,0.37901]
[1645869866212,0.10241306,38913.0,38911.0,0.40575]
[1645869866414,0.1022303,38913.0,38911.0,0.02674]
[1645869866612,0.1022303,38913.0,38911.0,0.001]
[1645869867014,0.1022303,38913.0,38912.0,0.37901]
[1645869867312,0.1022303,38913.0,38911.0,0.001]
[1645869867513,0.1022303,38913.0,38912.0,0.37901]
[1645869868014,0.1022303,38913.0,38908.0,6.817e-05]
[1645869868217,0.1022303,38913.0,38912.0,0.38001]
[1645869869060,0.10004774,38913.0,38912.0,0.38001]
[1645869869262,0.09996373,38913.0,38912.0,0.38001]
[1645869869462,0.09996373,38913.0,38909.0,0.37901]
[1645869869665,0.09996373,38913.0,38908.0,6.817e-05]
[1645869869863,0.09996373,38913.0,38912.0,6.791e-05]
[1645869871864,0.09788734,38913.0,38912.0,6.791e-05]
[1645869872064,0.09788734,38913.0,38912.0,0.00106791]
[1645869873312,0.09788734,38913.0,38912.0,6.791e-05]
[1645869874211,0.09788734,38913.0,38912.0,0.00206791]
[1645869874813,0.09788734,38913.0,38912.0,0.002]
[1645869875412,0.09788734,38913.0,38910.0,6.791e-05]
[1645869876261,0.09788734,38913.0,38910.0,0.00206791]
[1645869876461,0.0981634,38913.0,38910.0,0.00206791]
[1645869876860,0.3581634,38913.0,38910.0,0.00206791]
[1645869877461,0.35788734,38913.0,38910.0,6.791e-05]
[1645869877661,0.3581634,38913.0,38910.0,6.791e-05]
[1645869878666,0.35788734,38913.0,38910.0,6.791e-05]
[1645869878862,0.3581634,38913.0,38910.0,6.791e-05]
[1645869879864,0.35788734,38913.0,38910.0,6.791e-05]
[1645869880111,0.35816342,38913.0,38910.0,0.00206791]
[1645869880912,0.35788734,38913.0,38910.0,0.00206791]
[1645869881319,0.35816342,38913.0,38910.0,6.791e-05]
[1645869882112,0.35788734,38913.0,38910.0,0.00206791]
[1645869882514,0.35816342,38913.0,38910.0,0.00206791]
[1645869883315,0.35788734,38913.0,38910.0,0.00206791]
[1645869883515,0.35788734,38913.0,38910.0,6.791e-05]
[1645869883770,0.35816342,38913.0,38910.0,6.791e-05]
[1645869883968,0.35439743,38913.0,38910.0,6.791e-05]
[1645869884166,0.35439743,38913.0,38910.0,0.00206791]
[1645869884567,0.35412135,38913.0,38910.0,0.00206791]
[1645869884767,0.35439743,38913.0,38910.0,0.00206791]
[1645869885470,0.35439743,38913.0,38910.0,6.791e-05]
[1645869886972,0.35412135,38913.0,38910.0,6.791e-05]
[1645869887172,0.35439743,38913.0,38910.0,6.791e-05]
[1645869887616,0.35439743,38913.0,38908.0,0.06388485]
[1645869887816,0.35439743,38913.0,38909.0,0.37901]
[1645869888120,0.35439743,38913.0,38910.0,0.3]
[1645869888121,0.261,38913.0,38910.0,0.3]
[1645869888323,0.261,38913.0,38912.0,0.1]
[1645869888519,0.0011,38917.0,38914.0,1.2]
[1645869888722,0.0001,38917.0,38916.0,0.91084]
[1645869888916,0.0001,38917.0,38916.0,1.21084]
[1645869889121,0.0001,38917.0,38916.0,0.35]
[1645869889517,0.0001,38917.0,38916.0,1.1351]
[1645869889717,0.0001,38917.0,38916.0,0.35]
[1645869890117,0.00139474,38919.0,38917.0,1.2]
[1645869890317,0.00131073,38919.0,38918.0,0.3]
[1645869890518,0.00131073,38919.0,38918.0,1.0851]
[1645869891568,0.00131073,38919.0,38918.0,0.7851]
[1645869891869,0.00131073,38919.0,38917.0,1.25]
[1645869892266,0.00131073,38919.0,38918.0,0.3]
[1645869892667,0.00131073,38919.0,38918.0,1.0851]
[1645869893267,0.00131073,38919.0,38918.0,1.1851]
[1645869893667,0.00131073,38919.0,38918.0,1.21084]
[1645869893867,0.00131073,38919.0,38918.0,1.0851]
[1645869894068,0.00131073,38919.0,38918.0,0.3]
[1645869894268,0.00131073,38919.0,38918.0,1.0851]
[1645869894668,0.00131073,38919.0,38918.0,1.11084]
[1645869894869,0.00131073,38919.0,38918.0,1.48985]
[1645869895110,0.00131073,38919.0,38918.0,1.11084]
[1645869895911,3.073e-05,38919.0,38918.0,1.16244]
[1645869896112,3.073e-05,38919.0,38918.0,1.16644]
[1645869896311,0.0011,38924.0,38919.0,0.81084]
[1645869896511,0.0011,38924.0,38920.0,1.11084]
[1645869897414,0.0011,38924.0,38923.0,0.81084]
[1645869897615,0.0011,38924.0,38923.0,1.11084]
[1645869898216,0.0011,38933.0,38925.0,0.7851]
[1645869898417,0.0011,38933.0,38927.0,0.81084]
[1645869898618,0.0011,38933.0,38927.0,1.21084]
[1645869898892,0.0011,38933.0,38927.0,1.11084]
[1645869899195,0.01239465,38929.0,38927.0,1.11084]
[1645869900191,0.0122,38929.0,38927.0,1.11084]
[1645869900391,0.01239465,38929.0,38927.0,1.11084]
[1645869900993,0.01239465,38929.0,38927.0,0.8367]
[1645869901393,0.0122,38929.0,38927.0,0.8367]
[1645869901691,0.01239465,38929.0,38927.0,0.8367]
[1645869902095,0.01239465,38929.0,38927.0,0.8397]
[1645869902292,0.2611,38928.0,38927.0,0.8397]
[1645869903115,0.2611,38928.0,38927.0,1.1397]
[1645869903317,0.2611,38928.0,38927.0,1.1367]
[1645869903515,0.2611,38928.0,38927.0,1.2367]
[1645869903714,0.2611,38928.0,38927.0,1.514548]
[1645869904114,0.2611,38928.0,38927.0,1.519548]
[1645869905316,0.2611,38928.0,38927.0,1.619548]
[1645869905516,0.2611,38928.0,38927.0,1.614548]
[1645869905716,0.2611,38928.0,38927.0,1.514548]
[1645869905915,0.2611,38928.0,38927.0,1.614548]
[1645869906117,0.2611,38928.0,38927.0,0.8397]
[1645869906575,0.2611,38928.0,38927.0,0.7881]
[1645869907378,0.2611,38928.0,38927.0,0.7851]
[1645869907977,0.2611,38928.0,38927.0,1.462948]
[1645869908175,0.2611,38928.0,38927.0,0.7851]
[1645869910225,0.2611,38928.0,38927.0,0.7881]
[1645869910429,0.2611,38928.0,38927.0,1.0881]
[1645869910925,0.2611,38928.0,38927.0,0.7881]
[1645869911128,0.25891744,38928.0,38927.0,0.7881]
[1645869911325,0.25891744,38928.0,38927.0,1.0881]
[1645869911326,0.25883343,38928.0,38927.0,1.0881]
[1645869911525,0.25883343,38928.0,38927.0,1.0851]
[1645869912326,0.25883343,38928.0,38927.0,0.7881]
[1645869912531,0.25883343,38928.0,38927.0,1.0881]
[1645869913327,0.25883343,38928.0,38927.0,1.465948]
[1645869913527,0.25883343,38928.0,38927.0,1.462948]
[1645869913766,0.25883343,38928.0,38927.0,1.0851]
[1645869913966,0.25883343,38928.0,38927.0,1.462948]
[1645869914167,0.25883343,38928.0,38927.0,1.465948]
[1645869914770,0.25883343,38928.0,38927.0,1.0881]
[1645869914967,0.25883343,38928.0,38927.0,1.465948]
[1645869915171,0.25883343,38928.0,38927.0,1.0881]
[1645869915367,0.25883343,38928.0,38927.0,1.465948]
[1645869915568,0.25883343,38928.0,38927.0,0.7851]
[1645869915968,0.25883343,38928.0,38923.0,0.1139]
[1645869916170,0.25883343,38928.0,38921.0,0.1839]
[1645869916171,0.25883343,38928.0,38922.0,0.22175014]
[1645869917068,0.25883343,38928.0,38922.0,0.003]
[1645869917269,0.00030005,38927.0,38922.0,0.003]
[1645869917515,0.00030005,38927.0,38916.0,0.3]
[1645869917516,0.05190005,38927.0,38916.0,0.3]
[1645869917719,0.05190005,38927.0,38914.0,0.3]
[1645869918116,0.0516,38927.0,38914.0,0.3]
[1645869918315,0.1,38925.0,38914.0,0.004]
[1645869918515,0.00030006,38922.0,38914.0,0.004]
[1645869918715,0.0516,38921.0,38914.0,0.004]
[1645869919315,0.0516,38921.0,38915.0,0.2116145]
[1645869920115,0.0441,38921.0,38915.0,0.2116145]
[1645869920317,0.0441,38921.0,38915.0,0.2136145]
[1645869921565,0.0441,38921.0,38915.0,0.2116145]
[1645869921964,0.20016,38925.0,38921.0,0.0882]
[1645869922164,0.00030005,38922.0,38921.0,0.0882]
[1645869922969,0.0516,38924.0,38921.0,0.0882]
[1645869923165,0.00030006,38923.0,38921.0,0.0882]
[1645869924168,0.0516,38924.0,38921.0,0.0882]
[1645869924568,0.05190006,38924.0,38921.0,0.0882]
[1645869925017,0.05190006,38924.0,38921.0,0.32154619]
[1645869925216,0.05190006,38924.0,38921.0,0.0882]
[1645869925419,0.0516,38924.0,38921.0,0.0882]
[1645869925619,0.05190006,38924.0,38921.0,0.0882]
[1645869926216,0.05190006,38924.0,38921.0,0.0902]
[1645869926515,0.0516,38924.0,38921.0,0.0902]
[1645869927015,0.05190006,38924.0,38921.0,0.0902]
[1645869927415,0.05190006,38924.0,38921.0,0.0882]
[1645869927816,0.0516,38924.0,38921.0,0.0882]
[1645869928016,0.05190006,38924.0,38921.0,0.0882]
[1645869929064,0.0516,38924.0,38921.0,0.0882]
[1645869929265,0.05190006,38924.0,38921.0,0.0882]
[1645869930164,0.0516,38924.0,38921.0,0.0882]
[1645869930363,0.0516,38924.0,38921.0,0.0892]
[1645869930566,0.05190006,38924.0,38921.0,0.0892]
[1645869931366,0.0516,38924.0,38921.0,0.0892]
[1645869931566,0.0516,38924.0,38921.0,0.0882]
[1645869931768,0.05190006,38924.0,38921.0,0.0882]
[1645869932266,0.05290006,38924.0,38921.0,0.0882]
[1645869932514,0.05251599,38924.0,38921.0,0.0882]
[1645869932914,0.05281605,38924.0,38921.0,0.0882]
[1645869933516,0.05181605,38924.0,38921.0,0.0882]
[1645869933914,0.05151599,38924.0,38921.0,0.0882]
[1645869934114,0.05181605,38924.0,38921.0,0.0882]
[1645869934314,0.05181605,38924.0,38921.0,0.0892]
[1645869935114,0.05151599,38924.0,38921.0,0.0892]
[1645869935315,0.05181605,38924.0,38921.0,0.0892]
[1645869935514,0.05181605,38924.0,38921.0,0.0882]
[1645869936368,0.05181605,38924.0,38921.0,0.0892]
[1645869936868,0.35181605,38924.0,38921.0,0.0892]
[1645869937068,0.05181605,38924.0,38921.0,0.0892]
[1645869937469,0.05151599,38924.0,38921.0,0.0882]
[1645869937668,0.05181605,38924.0,38921.0,0.0882]
[1645869938270,0.05181605,38924.0,38921.0,0.0892]
[1645869938672,0.05151599,38924.0,38921.0,0.0892]
[1645869938873,0.05181605,38924.0,38921.0,0.0892]
[1645869939572,0.05181605,38924.0,38921.0,0.0882]
[1645869939773,0.05151599,38924.0,38921.0,0.0882]
[1645869940209,0.05181605,38924.0,38921.0,0.0892]
[1645869941018,0.05151599,38924.0,38921.0,0.0892]
[1645869941212,0.05181605,38924.0,38921.0,0.0892]
[1645869941612,0.05181605,38924.0,38921.0,0.0882]
[1645869941812,0.3,38923.0,38921.0,0.0882]
[1645869942017,0.0516,38922.0,38921.0,0.0882]
[1645869942215,0.4516,38922.0,38921.0,0.0882]
[1645869942416,0.3514,38922.0,38921.0,0.0892]
[1645869942615,0.6514,38922.0,38921.0,0.0892]
[1645869942916,1.2,38921.0,38913.0,0.31825935]
[1645869943116,0.1,38914.0,38913.0,0.31825935]
[1645869943414,0.1516,38914.0,38913.0,0.31825935]
[1645869944272,0.4516,38914.0,38913.0,0.31825935]
[1645869944476,0.5016,38914.0,38913.0,0.31825935]
[1645869946072,1.146,38914.0,38913.0,0.31825935]
[1645869946474,1.14461185,38914.0,38913.0,0.31825935]
[1645869948619,1.14116802,38914.0,38913.0,0.31825935]
[1645869950020,1.43971119,38914.0,38913.0,0.31825935]
[1645869953967,1.09454317,38914.0,38913.0,0.31825935]
[1645869954167,0.35014317,38914.0,38913.0,0.31649804]
[1645869958965,0.35143742,38914.0,38913.0,0.31649804]
[1645869962269,0.45143742,38914.0,38913.0,0.31649804]
[1645869962519,0.75143742,38914.0,38913.0,0.31649804]
[1645869964319,0.75243742,38914.0,38913.0,0.31649804]
[1645869964522,0.45243742,38914.0,38913.0,0.31649804]
[1645869964921,0.75243742,38914.0,38913.0,0.31649804]
[1645869965721,0.80143742,38914.0,38913.0,0.31649804]
[1645869966469,0.80243742,38914.0,38913.0,0.31649804]
[1645869967568,0.80143742,38914.0,38913.0,0.31649804]
[1645869968371,0.80243742,38914.0,38913.0,0.31649804]
[1645869969576,0.80143742,38914.0,38913.0,0.31649804]
[1645869970513,1.58753742,38914.0,38913.0,0.31649804]
[1645869970712,0.80243742,38914.0,38913.0,0.31649804]
[1645869971514,1.58753742,38914.0,38913.0,0.31649804]
[1645869971712,0.80143742,38914.0,38913.0,0.31649804]
[1645869972412,0.80243742,38914.0,38913.0,0.31649804]
[1645869973615,0.80143742,38914.0,38913.0,0.31649804]
[1645869973872,1.58653742,38914.0,38913.0,0.31649804]
[1645869975577,0.80143742,38914.0,38913.0,0.31649804]
[1645869975778,0.80015055,38914.0,38913.0,0.31649804]
[1645869978321,0.86444555,38914.0,38913.0,0.31649804]
[1645869978522,0.86544555,38914.0,38913.0,0.31649804]
[1645869979221,0.86544555,38914.0,38913.0,0.31771379]
[1645869979222,0.86543817,38914.0,38913.0,0.31771379]
[1645869979622,0.76443817,38914.0,38913.0,0.31771379]
[1645869979822,0.86443817,38914.0,38913.0,0.31771379]
[1645869980323,0.56543817,38914.0,38913.0,0.31771379]
[1645869980923,0.86543817,38914.0,38913.0,0.31771379]
[1645869981377,0.76543817,38914.0,38913.0,0.31771379]
[1645869981576,0.86443817,38914.0,38913.0,0.31771379]
[1645869981777,0.56443817,38914.0,38913.0,0.31771379]
[1645869982380,0.56543817,38914.0,38913.0,0.31771379]
[1645869982879,0.41543817,38914.0,38913.0,0.31771379]
[1645869983080,0.36383817,38914.0,38913.0,0.31771379]
[1645869983280,0.325295,38914.0,38913.0,0.31771379]
[1645869983679,0.319295,38914.0,38913.0,0.31771379]
[1645869987630,0.319295,38914.0,38913.0,0.31271379]
[1645869987933,0.319295,38914.0,38913.0,0.31171379]
[1645869988536,0.258,38914.0,38913.0,0.63745379]
[1645869988777,0.20088,38915.0,38914.0,1.52145208]
[1645869988975,0.2007,38925.0,38914.0,1.52145208]
[1645869989179,0.001,38931.0,38915.0,0.3]
[1645869989375,0.2004,38930.0,38926.0,0.18594126]
[1645869989574,0.2004,38930.0,38926.0,0.25019533]
[1645869989575,0.264655,38930.0,38926.0,0.25019533]
[1645869989775,0.2004,38930.0,38926.0,0.25019533]
[1645869990275,0.2004,38930.0,38928.0,0.3]
[1645869990483,0.01237171,38929.0,38928.0,0.703588]
[1645869990677,0.001,38931.0,38929.0,1.577848]
[1645869990874,0.001,38931.0,38930.0,0.02574]
[1645869991290,1.072942,38939.0,38932.0,0.02574]
[1645869991291,0.0021,38939.0,38932.0,0.02574]
[1645869991477,0.0021,38939.0,38935.0,0.19864913]
[1645869991875,0.0021,38939.0,38937.0,0.02574]
[1645869992525,0.0011,38940.0,38938.0,1.22574]
[1645869993725,0.0011,38940.0,38938.0,1.2]
[1645869994024,0.0011,38940.0,38938.0,1.22574]
[1645869994225,0.0011,38940.0,38938.0,1.2]
[1645869994827,0.0011,38940.0,38938.0,1.22574]
[1645869995225,0.0011,38940.0,38938.0,0.02574]
[1645869995426,0.2611,38940.0,38938.0,0.02574]
[1645869996499,0.2611,38940.0,38938.0,0.02674]
[1645869996894,0.2611,38940.0,38938.0,0.001]
[1645869997694,0.2611,38940.0,38937.0,0.02574]
[1645869998495,0.2621,38940.0,38937.0,0.02574]
[1645869998695,0.2621,38940.0,38937.0,0.02699933]
[1645869998895,0.26237855,38940.0,38937.0,0.02699933]
[1645869999695,0.26237855,38940.0,38937.0,0.02706788]
[1645869999696,0.26137855,38940.0,38937.0,0.02706788]